[Event "*** SCC Grand Prix: Titled Tuesday Blitz"]
[Site "Chess.com"]
[Date "2020.07.14"]
[Round "6"]
[White "Mfcyryd"]
[Black "Harsha_Bharathakoti"]
[Result "1/2-1/2"]
[WhiteElo "2572"]
[BlackElo "2779"]
[TimeControl "180+1"]
[EndTime "11:08:39 PDT"]
[Termination "Game drawn - insufficient material"]

1. e4 {[%clk 0:03:00.9]} 1... c5 {[%clk 0:03:00.4]} 2. Nf3 {[%clk 0:03:01.1]}
2... Nc6 {[%clk 0:03:00.9]} 3. d4 {[%clk 0:03:02]} 3... cxd4 {[%clk 0:03:01.8]}
4. Nxd4 {[%clk 0:03:02.7]} 4... Nf6 {[%clk 0:03:02.5]} 5. Nc3 {[%clk 0:03:02.8]}
5... d6 {[%clk 0:03:03.2]} 6. h4 {[%clk 0:03:01.6]} 6... e5 {[%clk 0:03:02.8]}
7. Nb3 {[%clk 0:02:57.9]} 7... Be6 {[%clk 0:03:02.8]} 8. f4 {[%clk 0:02:53]}
8... exf4 {[%clk 0:02:57.9]} 9. Bxf4 {[%clk 0:02:51.7]} 9... Be7 {[%clk
0:02:39.7]} 10. Qd2 {[%clk 0:02:51.6]} 10... Ne5 {[%clk 0:02:38.2]} 11. O-O-O
{[%clk 0:02:49.8]} 11... a6 {[%clk 0:02:37.3]} 12. Kb1 {[%clk 0:02:48.6]} 12...
Nfd7 {[%clk 0:02:34.2]} 13. Nd4 {[%clk 0:02:45]} 13... Rc8 {[%clk 0:02:31.2]}
14. Nd5 {[%clk 0:02:42.3]} 14... Bxd5 {[%clk 0:02:31.5]} 15. exd5 {[%clk
0:02:41.2]} 15... O-O {[%clk 0:02:30.9]} 16. Be2 {[%clk 0:02:36.2]} 16... Re8
{[%clk 0:02:30.9]} 17. g4 {[%clk 0:02:31.9]} 17... Bf8 {[%clk 0:02:13.1]} 18. g5
{[%clk 0:02:24]} 18... Nb6 {[%clk 0:02:10]} 19. Nf5 {[%clk 0:02:07.7]} 19...
Nbc4 {[%clk 0:02:09.7]} 20. Qd4 {[%clk 0:01:49.5]} 20... Qd7 {[%clk 0:01:54.8]}
21. Ng3 {[%clk 0:01:46.6]} 21... g6 {[%clk 0:01:48.2]} 22. h5 {[%clk 0:01:45.8]}
22... Bg7 {[%clk 0:01:48.5]} 23. Bc1 {[%clk 0:01:41.8]} 23... Qb5 {[%clk
0:01:32.6]} 24. Qc3 {[%clk 0:01:37.6]} 24... Nd7 {[%clk 0:01:00.7]} 25. Qb3
{[%clk 0:01:35.3]} 25... Qxb3 {[%clk 0:01:01.1]} 26. axb3 {[%clk 0:01:33]} 26...
Ne3 {[%clk 0:01:02]} 27. Rd2 {[%clk 0:01:29.7]} 27... Nc5 {[%clk 0:00:56.1]} 28.
Bf3 {[%clk 0:01:27.6]} 28... Re5 {[%clk 0:00:53.8]} 29. Re1 {[%clk 0:01:23.6]}
29... Rxg5 {[%clk 0:00:42.2]} 30. hxg6 {[%clk 0:01:19.7]} 30... hxg6 {[%clk
0:00:42.2]} 31. Nh5 {[%clk 0:01:17.2]} 31... gxh5 {[%clk 0:00:26]} 32. Rxe3
{[%clk 0:01:16.5]} 32... Rg1 {[%clk 0:00:26.5]} 33. Rg2 {[%clk 0:01:13]} 33...
Rxg2 {[%clk 0:00:23.1]} 34. Bxg2 {[%clk 0:01:13.9]} 34... h4 {[%clk 0:00:22.8]}
35. Bh3 {[%clk 0:01:11.4]} 35... Rf8 {[%clk 0:00:07.9]} 36. b4 {[%clk
0:01:06.8]} 36... Na4 {[%clk 0:00:08.2]} 37. c4 {[%clk 0:01:05.6]} 37... Nb6
{[%clk 0:00:08.4]} 38. b3 {[%clk 0:01:03.1]} 38... Be5 {[%clk 0:00:09.1]} 39.
Re4 {[%clk 0:00:59.9]} 39... f5 {[%clk 0:00:08.8]} 40. Rxh4 {[%clk 0:00:58.8]}
40... f4 {[%clk 0:00:09.5]} 41. Kc2 {[%clk 0:00:52.7]} 41... Kg7 {[%clk
0:00:09.7]} 42. Kd3 {[%clk 0:00:52]} 42... Nc8 {[%clk 0:00:09.2]} 43. Ke4 {[%clk
0:00:46.7]} 43... Ne7 {[%clk 0:00:09.4]} 44. Bxf4 {[%clk 0:00:43.6]} 44... Bxf4
{[%clk 0:00:08.1]} 45. Rxf4 {[%clk 0:00:44.5]} 45... Rxf4+ {[%clk 0:00:09]} 46.
Kxf4 {[%clk 0:00:44.6]} 46... Kf6 {[%clk 0:00:09.9]} 47. Be6 {[%clk 0:00:42.7]}
47... b6 {[%clk 0:00:10.4]} 48. Ke4 {[%clk 0:00:41.5]} 48... Kg7 {[%clk
0:00:09.3]} 49. Kd4 {[%clk 0:00:41.7]} 49... Kf6 {[%clk 0:00:09.6]} 50. c5
{[%clk 0:00:42.1]} 50... bxc5+ {[%clk 0:00:10.5]} 51. bxc5 {[%clk 0:00:43]}
51... dxc5+ {[%clk 0:00:11.4]} 52. Kxc5 {[%clk 0:00:43.4]} 52... Ke5 {[%clk
0:00:12.3]} 53. b4 {[%clk 0:00:26.4]} 53... Ng6 {[%clk 0:00:12.5]} 54. Bc8
{[%clk 0:00:25.2]} 54... Nf4 {[%clk 0:00:12.9]} 55. d6 {[%clk 0:00:23.9]} 55...
Nd3+ {[%clk 0:00:13.4]} 56. Kc4 {[%clk 0:00:23.3]} 56... Nxb4 {[%clk 0:00:13.5]}
57. d7 {[%clk 0:00:23.1]} 57... Nc6 {[%clk 0:00:13.9]} 58. Kc5 {[%clk
0:00:22.6]} 58... Nd8 {[%clk 0:00:14.6]} 59. Bxa6 {[%clk 0:00:22.5]} 59... Ke6
{[%clk 0:00:12.9]} 60. Bc8 {[%clk 0:00:21.6]} 60... Ke7 {[%clk 0:00:11.6]} 61.
Kd5 {[%clk 0:00:21.3]} 61... Nf7 {[%clk 0:00:09.8]} 62. Ke4 {[%clk 0:00:19.3]}
62... Kd8 {[%clk 0:00:08.8]} 63. Kf5 {[%clk 0:00:19.2]} 63... Nd6+ {[%clk
0:00:09.1]} 64. Ke6 {[%clk 0:00:19.4]} 64... Nxc8 {[%clk 0:00:10]} 65. dxc8=Q+
{[%clk 0:00:19.6]} 65... Kxc8 {[%clk 0:00:10.9]} 1/2-1/2

[Event "*** SCC Grand Prix: Titled Tuesday Blitz"]
[Site "Chess.com"]
[Date "2020.07.14"]
[Round "6"]
[White "tigra"]
[Black "Parhamov"]
[Result "1-0"]
[WhiteElo "2847"]
[BlackElo "3009"]
[TimeControl "180+1"]
[EndTime "11:08:40 PDT"]
[Termination "tigra won on time"]

1. e4 {[%clk 0:03:00.9]} 1... e5 {[%clk 0:02:48]} 2. Nf3 {[%clk 0:02:52.5]} 2...
Nc6 {[%clk 0:02:35.9]} 3. Bc4 {[%clk 0:02:35.5]} 3... Bc5 {[%clk 0:02:33.8]} 4.
b4 {[%clk 0:02:33.9]} 4... Bb6 {[%clk 0:02:06.5]} 5. a4 {[%clk 0:02:27.5]} 5...
a6 {[%clk 0:02:05.9]} 6. c3 {[%clk 0:02:22.9]} 6... Nf6 {[%clk 0:02:05.2]} 7. d3
{[%clk 0:02:21.1]} 7... O-O {[%clk 0:02:04.6]} 8. O-O {[%clk 0:02:13.3]} 8... d6
{[%clk 0:02:00.5]} 9. Ra2 {[%clk 0:02:02.7]} 9... Be6 {[%clk 0:01:57.5]} 10.
Nbd2 {[%clk 0:01:57]} 10... h6 {[%clk 0:01:44.1]} 11. Bxe6 {[%clk 0:01:50.3]}
11... fxe6 {[%clk 0:01:43.5]} 12. Nc4 {[%clk 0:01:47.1]} 12... Ba7 {[%clk
0:01:43.2]} 13. b5 {[%clk 0:01:44.7]} 13... Ne7 {[%clk 0:01:40.3]} 14. bxa6
{[%clk 0:01:39.1]} 14... bxa6 {[%clk 0:01:40.1]} 15. Be3 {[%clk 0:01:32.4]}
15... Bxe3 {[%clk 0:01:35.3]} 16. Nxe3 {[%clk 0:01:24.8]} 16... Ng6 {[%clk
0:01:35.2]} 17. g3 {[%clk 0:01:22.6]} 17... Rb8 {[%clk 0:01:31.4]} 18. Kg2
{[%clk 0:01:15.3]} 18... Qd7 {[%clk 0:01:29.4]} 19. Qc2 {[%clk 0:01:12.1]} 19...
Rf7 {[%clk 0:01:20.5]} 20. Rb1 {[%clk 0:01:07.8]} 20... Rbf8 {[%clk 0:01:20.3]}
21. Ng1 {[%clk 0:00:53.4]} 21... d5 {[%clk 0:01:18.9]} 22. Rab2 {[%clk
0:00:46.5]} 22... Qc6 {[%clk 0:01:15.1]} 23. f3 {[%clk 0:00:43.6]} 23... h5
{[%clk 0:01:07.1]} 24. h4 {[%clk 0:00:42.4]} 24... Nd7 {[%clk 0:00:42.3]} 25.
Rb4 {[%clk 0:00:30.7]} 25... Ne7 {[%clk 0:00:32.1]} 26. Qe2 {[%clk 0:00:27.6]}
26... Qxc3 {[%clk 0:00:29.9]} 27. exd5 {[%clk 0:00:20.7]} 27... exd5 {[%clk
0:00:29.9]} 28. R4b2 {[%clk 0:00:12.1]} 28... Qd4 {[%clk 0:00:23.7]} 29. Rc2
{[%clk 0:00:12.1]} 29... c5 {[%clk 0:00:19.9]} 30. Rb7 {[%clk 0:00:10.9]} 30...
Nf6 {[%clk 0:00:18.7]} 31. Rxe7 {[%clk 0:00:10.8]} 31... Ng4 {[%clk 0:00:14.9]}
32. fxg4 {[%clk 0:00:08.4]} 32... Rxe7 {[%clk 0:00:15.1]} 33. Nf5 {[%clk
0:00:08.6]} 33... Rxf5 {[%clk 0:00:15]} 34. gxf5 {[%clk 0:00:09.5]} 34... e4
{[%clk 0:00:15]} 35. dxe4 {[%clk 0:00:09.9]} 35... c4 {[%clk 0:00:15.2]} 36. Nf3
{[%clk 0:00:09.5]} 36... Qxe4 {[%clk 0:00:13.6]} 37. Qxe4 {[%clk 0:00:09.9]}
37... Rxe4 {[%clk 0:00:14.5]} 38. Rd2 {[%clk 0:00:10.4]} 38... c3 {[%clk
0:00:13.6]} 39. Rxd5 {[%clk 0:00:10.6]} 39... Rxa4 {[%clk 0:00:14]} 40. Rc5
{[%clk 0:00:10.7]} 40... Ra2+ {[%clk 0:00:13]} 41. Kf1 {[%clk 0:00:11]} 41... c2
{[%clk 0:00:12.3]} 42. Ne1 {[%clk 0:00:11.3]} 42... Ra5 {[%clk 0:00:11.2]} 43.
Rxc2 {[%clk 0:00:10.7]} 43... Rxf5+ {[%clk 0:00:11.2]} 44. Ke2 {[%clk
0:00:11.3]} 44... g5 {[%clk 0:00:10.2]} 45. Rc8+ {[%clk 0:00:09.8]} 45... Kf7
{[%clk 0:00:08.7]} 46. Rc7+ {[%clk 0:00:10]} 46... Ke8 {[%clk 0:00:07.5]} 47.
Nf3 {[%clk 0:00:10]} 47... Kd8 {[%clk 0:00:06.3]} 48. Ra7 {[%clk 0:00:09.9]}
48... gxh4 {[%clk 0:00:06.1]} 49. gxh4 {[%clk 0:00:10.2]} 49... Ra5 {[%clk
0:00:04.6]} 50. Ke3 {[%clk 0:00:10]} 50... Kc8 {[%clk 0:00:05.1]} 51. Nd4 {[%clk
0:00:09.6]} 51... Ra1 {[%clk 0:00:03.7]} 52. Ke4 {[%clk 0:00:09.1]} 52... Kb8
{[%clk 0:00:04.1]} 53. Nc6+ {[%clk 0:00:08.5]} 53... Kc8 {[%clk 0:00:04.7]} 54.
Rh7 {[%clk 0:00:09.3]} 54... a5 {[%clk 0:00:04.7]} 55. Kd5 {[%clk 0:00:07.6]}
55... a4 {[%clk 0:00:04.5]} 56. Kd6 {[%clk 0:00:07.1]} 56... Rd1+ {[%clk
0:00:03.5]} 57. Kc5 {[%clk 0:00:07.3]} 57... a3 {[%clk 0:00:04.4]} 58. Nb4
{[%clk 0:00:05.3]} 58... Rc1+ {[%clk 0:00:02.5]} 59. Kd6 {[%clk 0:00:05.3]}
59... Rd1+ {[%clk 0:00:02.8]} 60. Nd5 {[%clk 0:00:04]} 1-0

[Event "*** SCC Grand Prix: Titled Tuesday Blitz"]
[Site "Chess.com"]
[Date "2020.07.14"]
[Round "6"]
[White "EvgenyRomanov"]
[Black "JoakimVonAnd"]
[Result "1-0"]
[WhiteElo "2604"]
[BlackElo "2447"]
[TimeControl "180+1"]
[EndTime "11:08:41 PDT"]
[Termination "EvgenyRomanov won by checkmate"]

1. Nf3 {[%clk 0:03:00.4]} 1... d5 {[%clk 0:02:59.5]} 2. c4 {[%clk 0:02:58.3]}
2... e6 {[%clk 0:02:57]} 3. g3 {[%clk 0:02:57.2]} 3... Nf6 {[%clk 0:02:57]} 4.
Bg2 {[%clk 0:02:57.3]} 4... dxc4 {[%clk 0:02:57.4]} 5. Qa4+ {[%clk 0:02:56.6]}
5... c6 {[%clk 0:02:56.4]} 6. Qxc4 {[%clk 0:02:56.8]} 6... b5 {[%clk 0:02:56.3]}
7. Qb3 {[%clk 0:02:56.5]} 7... Bb7 {[%clk 0:02:56.2]} 8. d4 {[%clk 0:02:56.3]}
8... a6 {[%clk 0:02:53.5]} 9. O-O {[%clk 0:02:55.9]} 9... Nbd7 {[%clk
0:02:53.2]} 10. Rd1 {[%clk 0:02:55.4]} 10... Qb6 {[%clk 0:02:52.6]} 11. a4
{[%clk 0:02:53.7]} 11... c5 {[%clk 0:02:48.7]} 12. axb5 {[%clk 0:02:53.1]} 12...
axb5 {[%clk 0:02:46.5]} 13. Rxa8+ {[%clk 0:02:52.7]} 13... Bxa8 {[%clk
0:02:47.4]} 14. Na3 {[%clk 0:02:51]} 14... Bc6 {[%clk 0:02:38.2]} 15. Ne5 {[%clk
0:02:47.5]} 15... Bxg2 {[%clk 0:02:24]} 16. Kxg2 {[%clk 0:02:45.3]} 16... b4
{[%clk 0:02:17.3]} 17. Nac4 {[%clk 0:02:40.7]} 17... Qb7+ {[%clk 0:02:16.4]} 18.
f3 {[%clk 0:02:27.7]} 18... Be7 {[%clk 0:02:12.4]} 19. dxc5 {[%clk 0:02:12]}
19... Nxc5 {[%clk 0:02:10.2]} 20. Qc2 {[%clk 0:01:59.9]} 20... O-O {[%clk
0:02:06.1]} 21. Na5 {[%clk 0:01:59]} 21... Qc7 {[%clk 0:01:55.7]} 22. Nac6
{[%clk 0:01:55.9]} 22... Rc8 {[%clk 0:01:42.2]} 23. Nxe7+ {[%clk 0:01:31.9]}
23... Qxe7 {[%clk 0:01:43.1]} 24. e4 {[%clk 0:01:29.1]} 24... h6 {[%clk
0:01:34.5]} 25. Be3 {[%clk 0:01:27.9]} 25... Rc7 {[%clk 0:01:30.9]} 26. Qd2
{[%clk 0:01:23.3]} 26... b3 {[%clk 0:01:24.4]} 27. Qb4 {[%clk 0:01:15.9]} 27...
Qf8 {[%clk 0:01:05.9]} 28. Rd2 {[%clk 0:01:11.8]} 28... Ncd7 {[%clk 0:00:40.6]}
29. Qb5 {[%clk 0:00:40.3]} 29... Nxe5 {[%clk 0:00:34.9]} 30. Qxe5 {[%clk
0:00:41]} 30... Qc8 {[%clk 0:00:30.9]} 31. Qb5 {[%clk 0:00:35.5]} 31... Rb7
{[%clk 0:00:26.7]} 32. Qa4 {[%clk 0:00:33.1]} 32... Kh7 {[%clk 0:00:17.2]} 33.
Bd4 {[%clk 0:00:31.7]} 33... Nd7 {[%clk 0:00:15.5]} 34. h4 {[%clk 0:00:24]}
34... e5 {[%clk 0:00:10]} 35. Bc3 {[%clk 0:00:22.8]} 35... f6 {[%clk 0:00:10.5]}
36. Rd6 {[%clk 0:00:09.6]} 36... Nf8 {[%clk 0:00:10]} 37. Rd5 {[%clk 0:00:07.2]}
37... Ne6 {[%clk 0:00:09.9]} 38. Rb5 {[%clk 0:00:05.8]} 38... Rxb5 {[%clk
0:00:05.7]} 39. Qxb5 {[%clk 0:00:06.7]} 39... Nd4 {[%clk 0:00:04.9]} 40. Bxd4
{[%clk 0:00:05.6]} 40... exd4 {[%clk 0:00:05.8]} 41. Qxb3 {[%clk 0:00:04.8]}
41... Qc1 {[%clk 0:00:06.4]} 42. Kf2 {[%clk 0:00:04.5]} 42... Qb1 {[%clk
0:00:04.4]} 43. Ke2 {[%clk 0:00:03.9]} 43... Qg1 {[%clk 0:00:04.5]} 44. g4
{[%clk 0:00:03.7]} 44... Qg2+ {[%clk 0:00:03.6]} 45. Kd1 {[%clk 0:00:03.3]}
45... Qf1+ {[%clk 0:00:03.7]} 46. Kd2 {[%clk 0:00:03.2]} 46... Qf2+ {[%clk
0:00:04.2]} 47. Kc1 {[%clk 0:00:03.5]} 47... Qe1+ {[%clk 0:00:04.1]} 48. Qd1
{[%clk 0:00:02.1]} 48... Qe2 {[%clk 0:00:04.7]} 49. Qxe2 {[%clk 0:00:01.6]}
49... d3 {[%clk 0:00:04.1]} 50. Qxd3 {[%clk 0:00:02.5]} 50... Kg6 {[%clk
0:00:05]} 51. e5+ {[%clk 0:00:02.9]} 51... f5 {[%clk 0:00:04.9]} 52. gxf5+
{[%clk 0:00:02.7]} 52... Kh5 {[%clk 0:00:03.9]} 53. e6 {[%clk 0:00:03.6]} 53...
Kxh4 {[%clk 0:00:04.8]} 54. Qe4+ {[%clk 0:00:04.5]} 54... Kg3 {[%clk 0:00:05.7]}
55. Qg4+ {[%clk 0:00:04.7]} 55... Kf2 {[%clk 0:00:06.6]} 56. Qxg7 {[%clk
0:00:04.8]} 56... h5 {[%clk 0:00:06.7]} 57. Qh6 {[%clk 0:00:05.7]} 57... h4
{[%clk 0:00:07.6]} 58. Qxh4+ {[%clk 0:00:05.8]} 58... Ke2 {[%clk 0:00:07.8]} 59.
e7 {[%clk 0:00:06.7]} 59... Kd3 {[%clk 0:00:08.7]} 60. e8=B {[%clk 0:00:03.2]}
60... Ke2 {[%clk 0:00:09.6]} 61. Qe4+ {[%clk 0:00:02.8]} 61... Kf1 {[%clk
0:00:10]} 62. Bb5+ {[%clk 0:00:03]} 62... Kg2 {[%clk 0:00:10.9]} 63. Qe2+ {[%clk
0:00:03.5]} 63... Kg3 {[%clk 0:00:10.8]} 64. f6 {[%clk 0:00:04.4]} 64... Kf4
{[%clk 0:00:11.7]} 65. f7 {[%clk 0:00:05.3]} 65... Kg5 {[%clk 0:00:12.6]} 66.
f8=Q {[%clk 0:00:04.9]} 66... Kh4 {[%clk 0:00:13.5]} 67. Qh2+ {[%clk 0:00:04.6]}
67... Kg5 {[%clk 0:00:14.4]} 68. Qff4+ {[%clk 0:00:04.5]} 68... Kg6 {[%clk
0:00:14.2]} 69. Qhh6# {[%clk 0:00:04.9]} 1-0

[Event "*** SCC Grand Prix: Titled Tuesday Blitz"]
[Site "Chess.com"]
[Date "2020.07.14"]
[Round "6"]
[White "PSvidler"]
[Black "kuban1991"]
[Result "0-1"]
[WhiteElo "2964"]
[BlackElo "2769"]
[TimeControl "180+1"]
[EndTime "11:08:49 PDT"]
[Termination "kuban1991 won by resignation"]

1. e4 {[%clk 0:03:00.9]} 1... e6 {[%clk 0:02:59.7]} 2. d4 {[%clk 0:03:00.7]}
2... d5 {[%clk 0:02:59.8]} 3. Nd2 {[%clk 0:03:01]} 3... c5 {[%clk 0:02:59.6]} 4.
Ngf3 {[%clk 0:02:59.4]} 4... Nc6 {[%clk 0:02:59.4]} 5. exd5 {[%clk 0:02:57.3]}
5... exd5 {[%clk 0:03:00.3]} 6. Bb5 {[%clk 0:02:56.7]} 6... Bd6 {[%clk
0:03:00.5]} 7. dxc5 {[%clk 0:02:56.3]} 7... Bxc5 {[%clk 0:03:01.4]} 8. O-O
{[%clk 0:02:56.6]} 8... Ne7 {[%clk 0:03:01.6]} 9. Nb3 {[%clk 0:02:57.2]} 9...
Bb6 {[%clk 0:03:02.3]} 10. Re1 {[%clk 0:02:57]} 10... O-O {[%clk 0:03:02.5]} 11.
Be3 {[%clk 0:02:56.9]} 11... Bf5 {[%clk 0:03:02.6]} 12. h3 {[%clk 0:02:36.6]}
12... h6 {[%clk 0:03:00.7]} 13. c3 {[%clk 0:02:35.5]} 13... Be4 {[%clk
0:03:00.6]} 14. Nc5 {[%clk 0:02:22]} 14... Nf5 {[%clk 0:02:40]} 15. Nxe4 {[%clk
0:01:52.5]} 15... Nxe3 {[%clk 0:02:39.4]} 16. fxe3 {[%clk 0:01:52]} 16... dxe4
{[%clk 0:02:39]} 17. Qxd8 {[%clk 0:01:50.1]} 17... Raxd8 {[%clk 0:02:39.9]} 18.
Nd4 {[%clk 0:01:49.5]} 18... Ne5 {[%clk 0:02:36.6]} 19. Rad1 {[%clk 0:01:49.2]}
19... g6 {[%clk 0:02:26.3]} 20. Kf2 {[%clk 0:01:28.2]} 20... h5 {[%clk
0:02:25.5]} 21. Ke2 {[%clk 0:01:23.7]} 21... a6 {[%clk 0:02:11.7]} 22. Ba4
{[%clk 0:01:23.7]} 22... Nd3 {[%clk 0:02:05.7]} 23. Rxd3 {[%clk 0:01:23.6]}
23... exd3+ {[%clk 0:02:06.6]} 24. Kxd3 {[%clk 0:01:24.5]} 24... Kg7 {[%clk
0:02:01.4]} 25. b4 {[%clk 0:01:22.7]} 25... Rd6 {[%clk 0:01:58.3]} 26. Bb3
{[%clk 0:01:21.2]} 26... Rfd8 {[%clk 0:01:57]} 27. g4 {[%clk 0:01:17.8]} 27...
hxg4 {[%clk 0:01:54.8]} 28. hxg4 {[%clk 0:01:17.8]} 28... Rh8 {[%clk 0:01:53.9]}
29. c4 {[%clk 0:01:11]} 29... Rf6 {[%clk 0:01:35.8]} 30. c5 {[%clk 0:01:10.2]}
30... Bc7 {[%clk 0:01:35.4]} 31. Bd5 {[%clk 0:01:08.1]} 31... b6 {[%clk
0:01:29.8]} 32. Bb7 {[%clk 0:00:59.9]} 32... bxc5 {[%clk 0:01:26.7]} 33. bxc5
{[%clk 0:01:00.1]} 33... Rh2 {[%clk 0:01:23.8]} 34. Re2 {[%clk 0:00:58.2]} 34...
Rh4 {[%clk 0:01:03]} 35. Rg2 {[%clk 0:00:44.5]} 35... Rh1 {[%clk 0:00:50.4]} 36.
c6 {[%clk 0:00:42.3]} 36... Rd1+ {[%clk 0:00:39.6]} 37. Ke4 {[%clk 0:00:40.2]}
37... Rd6 {[%clk 0:00:25.5]} 38. Rc2 {[%clk 0:00:34.7]} 38... Kf6 {[%clk
0:00:14.6]} 39. Bxa6 {[%clk 0:00:34.2]} 39... Kg5 {[%clk 0:00:10.1]} 40. Be2
{[%clk 0:00:33.6]} 40... f5+ {[%clk 0:00:07]} 41. gxf5 {[%clk 0:00:33.3]} 41...
gxf5+ {[%clk 0:00:07.9]} 42. Nxf5 {[%clk 0:00:24]} 42... Re6+ {[%clk 0:00:06]}
43. Kf3 {[%clk 0:00:24.2]} 43... Rd8 {[%clk 0:00:06]} 44. e4 {[%clk 0:00:20.2]}
44... Rh8 {[%clk 0:00:06.3]} 45. Bb5 {[%clk 0:00:17.3]} 45... Rh3+ {[%clk
0:00:06.3]} 46. Ke2 {[%clk 0:00:13.9]} 46... Rxe4+ {[%clk 0:00:06.2]} 47. Kd2
{[%clk 0:00:13.6]} 47... Kxf5 {[%clk 0:00:06.5]} 48. Bd3 {[%clk 0:00:13.4]}
48... Kf4 {[%clk 0:00:05.9]} 49. Bxe4 {[%clk 0:00:13.4]} 49... Kxe4 {[%clk
0:00:06.8]} 50. Rc4+ {[%clk 0:00:13.8]} 50... Kd5 {[%clk 0:00:07.1]} 51. Rg4
{[%clk 0:00:13.6]} 51... Rh2+ {[%clk 0:00:07.6]} 52. Kd3 {[%clk 0:00:13.3]}
52... Kxc6 {[%clk 0:00:08.5]} 53. Rg6+ {[%clk 0:00:13.3]} 53... Bd6 {[%clk
0:00:08.9]} 54. a4 {[%clk 0:00:14]} 54... Rh4 {[%clk 0:00:08.6]} 55. Kc3 {[%clk
0:00:13.9]} 55... Rxa4 {[%clk 0:00:08.8]} 56. Kb3 {[%clk 0:00:14.5]} 56... Rf4
{[%clk 0:00:09.4]} 57. Rg2 {[%clk 0:00:14.1]} 57... Kd5 {[%clk 0:00:09.8]} 58.
Rd2+ {[%clk 0:00:14.2]} 58... Kc5 {[%clk 0:00:10]} 59. Rc2+ {[%clk 0:00:14.7]}
59... Kb5 {[%clk 0:00:10.5]} 60. Rc3 {[%clk 0:00:15.2]} 60... Be5 {[%clk
0:00:10.2]} 61. Rd3 {[%clk 0:00:15.1]} 61... Rb4+ {[%clk 0:00:10.8]} 62. Kc2
{[%clk 0:00:15.4]} 62... Kc4 {[%clk 0:00:10.9]} 63. Rd8 {[%clk 0:00:15.1]} 63...
Rb2+ {[%clk 0:00:10.8]} 64. Kc1 {[%clk 0:00:15.4]} 64... Rh2 {[%clk 0:00:10]}
65. Rc8+ {[%clk 0:00:15.3]} 65... Kd3 {[%clk 0:00:09.3]} 66. Kb1 {[%clk
0:00:13.7]} 66... Bd4 {[%clk 0:00:08.2]} 67. Rc7 {[%clk 0:00:09.3]} 67... Rb2+
{[%clk 0:00:06.5]} 68. Kc1 {[%clk 0:00:09.3]} 68... Rb6 {[%clk 0:00:05.9]} 69.
Rd7 {[%clk 0:00:08.5]} 69... Ra6 {[%clk 0:00:05.9]} 0-1

[Event "*** SCC Grand Prix: Titled Tuesday Blitz"]
[Site "Chess.com"]
[Date "2020.07.14"]
[Round "6"]
[White "novocane"]
[Black "Phriex"]
[Result "1/2-1/2"]
[WhiteElo "2262"]
[BlackElo "2397"]
[TimeControl "180+1"]
[EndTime "11:08:49 PDT"]
[Termination "Game drawn - insufficient material"]

1. d4 {[%clk 0:03:00.8]} 1... d5 {[%clk 0:02:59.9]} 2. c4 {[%clk 0:03:00.5]}
2... e6 {[%clk 0:03:00.5]} 3. Nc3 {[%clk 0:03:00.2]} 3... Be7 {[%clk 0:03:01]}
4. cxd5 {[%clk 0:02:59.9]} 4... exd5 {[%clk 0:03:01.9]} 5. Bf4 {[%clk
0:02:59.3]} 5... c6 {[%clk 0:03:02.4]} 6. Qc2 {[%clk 0:02:59.2]} 6... Bd6 {[%clk
0:03:01.8]} 7. Nxd5 {[%clk 0:02:13.5]} 7... Qa5+ {[%clk 0:03:01.3]} 8. Nc3
{[%clk 0:02:12.7]} 8... Bxf4 {[%clk 0:03:00.7]} 9. Qe4+ {[%clk 0:02:12.6]} 9...
Ne7 {[%clk 0:02:58.2]} 10. Qxf4 {[%clk 0:02:12.5]} 10... Be6 {[%clk 0:02:47.7]}
11. e4 {[%clk 0:02:05.5]} 11... Nd7 {[%clk 0:02:42.5]} 12. Nf3 {[%clk
0:02:04.8]} 12... h6 {[%clk 0:02:40]} 13. Bd3 {[%clk 0:02:03.1]} 13... g5 {[%clk
0:02:25.7]} 14. Qd6 {[%clk 0:01:48.3]} 14... Rd8 {[%clk 0:02:04.1]} 15. O-O
{[%clk 0:01:34.7]} 15... Nf6 {[%clk 0:01:46.5]} 16. Qe5 {[%clk 0:01:25.8]} 16...
Qxe5 {[%clk 0:01:39.6]} 17. dxe5 {[%clk 0:01:24.9]} 17... Nd7 {[%clk 0:01:30.9]}
18. h3 {[%clk 0:01:22.7]} 18... g4 {[%clk 0:01:25.3]} 19. hxg4 {[%clk
0:01:20.8]} 19... Bxg4 {[%clk 0:01:26.2]} 20. Be2 {[%clk 0:01:17.5]} 20... Bxf3
{[%clk 0:01:20.9]} 21. gxf3 {[%clk 0:01:17.3]} 21... Nxe5 {[%clk 0:01:20.9]} 22.
f4 {[%clk 0:01:17.4]} 22... N5g6 {[%clk 0:01:16.3]} 23. f5 {[%clk 0:01:16.7]}
23... Nf4 {[%clk 0:01:16.4]} 24. Rfd1 {[%clk 0:01:08.7]} 24... Rg8+ {[%clk
0:01:13.8]} 25. Kf1 {[%clk 0:01:08.7]} 25... Nh3 {[%clk 0:01:02]} 26. Bc4 {[%clk
0:01:04]} 26... Rxd1+ {[%clk 0:00:31.7]} 27. Rxd1 {[%clk 0:01:03.2]} 27... Rg1+
{[%clk 0:00:29.7]} 28. Ke2 {[%clk 0:01:03.2]} 28... Rxd1 {[%clk 0:00:26.5]} 29.
Nxd1 {[%clk 0:01:01.6]} 29... b5 {[%clk 0:00:22.6]} 30. Bb3 {[%clk 0:00:54.6]}
30... Nf4+ {[%clk 0:00:20.4]} 31. Ke3 {[%clk 0:00:50.8]} 31... Ng2+ {[%clk
0:00:19.2]} 32. Kf3 {[%clk 0:00:44.9]} 32... Ne1+ {[%clk 0:00:15.6]} 33. Ke2
{[%clk 0:00:41.9]} 33... Ng2 {[%clk 0:00:15.6]} 34. Kf3 {[%clk 0:00:38.4]} 34...
Ne1+ {[%clk 0:00:12.6]} 35. Kg4 {[%clk 0:00:36.2]} 35... Nd3 {[%clk 0:00:10.7]}
36. Kh5 {[%clk 0:00:31]} 36... Ng8 {[%clk 0:00:03.6]} 37. Bc2 {[%clk 0:00:22.5]}
37... Nb4 {[%clk 0:00:03.3]} 38. Bb1 {[%clk 0:00:22]} 38... c5 {[%clk
0:00:02.5]} 39. e5 {[%clk 0:00:20.6]} 39... Nc6 {[%clk 0:00:02.6]} 40. f4 {[%clk
0:00:20.4]} 40... Nd4 {[%clk 0:00:02.3]} 41. Ne3 {[%clk 0:00:19]} 41... c4
{[%clk 0:00:02]} 42. Nd5 {[%clk 0:00:18.8]} 42... Kd7 {[%clk 0:00:01.3]} 43. f6
{[%clk 0:00:16.4]} 43... a5 {[%clk 0:00:01.4]} 44. f5 {[%clk 0:00:14.7]} 44...
b4 {[%clk 0:00:01.2]} 45. Nb6+ {[%clk 0:00:14]} 45... Ke8 {[%clk 0:00:01.4]} 46.
Nxc4 {[%clk 0:00:14.5]} 46... Nc6 {[%clk 0:00:02.3]} 47. Be4 {[%clk 0:00:12]}
47... Nxe5 {[%clk 0:00:02.7]} 48. Nxe5 {[%clk 0:00:12.1]} 48... Nxf6+ {[%clk
0:00:03.3]} 49. Kxh6 {[%clk 0:00:12.7]} 49... Nxe4 {[%clk 0:00:04.2]} 50. Kg7
{[%clk 0:00:09.9]} 50... Nd6 {[%clk 0:00:03.5]} 51. f6 {[%clk 0:00:09.5]} 51...
Nf5+ {[%clk 0:00:04]} 52. Kg8 {[%clk 0:00:08.9]} 52... Nd6 {[%clk 0:00:04.9]}
53. b3 {[%clk 0:00:08.7]} 53... Ne4 {[%clk 0:00:03.1]} 54. Nxf7 {[%clk
0:00:08.1]} 54... Nxf6+ {[%clk 0:00:02.7]} 55. Kg7 {[%clk 0:00:08.7]} 55... Ne4
{[%clk 0:00:03.6]} 56. Ne5 {[%clk 0:00:06.5]} 56... Nc3 {[%clk 0:00:04.5]} 57.
Nc6 {[%clk 0:00:06.5]} 57... Kd7 {[%clk 0:00:04.9]} 58. Nxa5 {[%clk 0:00:06.7]}
58... Nxa2 {[%clk 0:00:05.8]} 59. Kf6 {[%clk 0:00:05.9]} 59... Kc7 {[%clk
0:00:05.2]} 60. Ke5 {[%clk 0:00:05.6]} 60... Kb6 {[%clk 0:00:05.8]} 61. Nc4+
{[%clk 0:00:05.7]} 61... Kc5 {[%clk 0:00:06.7]} 62. Ke4 {[%clk 0:00:05]} 62...
Nc1 {[%clk 0:00:05.8]} 63. Nd2 {[%clk 0:00:05.3]} 63... Nxb3 {[%clk 0:00:03.7]}
64. Nxb3+ {[%clk 0:00:05.3]} 64... Kc4 {[%clk 0:00:04.6]} 65. Nd4 {[%clk
0:00:05.5]} 65... Kc3 {[%clk 0:00:04.6]} 66. Kd5 {[%clk 0:00:04.6]} 66... b3
{[%clk 0:00:04.4]} 67. Nxb3 {[%clk 0:00:05]} 1/2-1/2